[Event "Titled Tuesday Blitz December 27 Early 2022"]
[White "Mohammadian, Mohammad"]
[Black "Sovetbekova, Nurai"]
[WhiteFideId "12566055"]
[BlackFideId "13801910"]
[WhiteElo "1398"]
[BlackElo "1764"]
[Result "1-0"]
[Round "10"]
[TimeControl "180+2"]
[Date "2022.12.27"]
[WhiteClock "0:00:44"]
[BlackClock "0:00:11"]

1. e4 {[%clk 0:02:56]}  c5 {[%clk 0:02:59]} 2. Nf3 {[%clk 0:02:55]}  d6 {[%clk 0:03:00]} 3. d4 {[%clk 0:02:55]}  cxd4 {[%clk 0:03:01]} 4. Nxd4 {[%clk 0:02:55]}  Nf6 {[%clk 0:03:01]} 5. Nc3 {[%clk 0:02:55]}  a6 {[%clk 0:03:01]} 6. Be2 {[%clk 0:02:54]}  e5 {[%clk 0:02:58]} 7. Nb3 {[%clk 0:02:53]}  Be7 {[%clk 0:02:56]} 8. Be3 {[%clk 0:02:53]}  Be6 {[%clk 0:02:55]} 9. O-O {[%clk 0:02:52]}  O-O {[%clk 0:02:55]} 10. Qe1 {[%clk 0:02:51]}  Nbd7 {[%clk 0:02:54]} 11. Rd1 {[%clk 0:02:51]}  Qc7 {[%clk 0:02:53]} 12. f3 {[%clk 0:02:51]}  Nc5 {[%clk 0:02:52]} 13. Nxc5 {[%clk 0:02:47]}  dxc5 {[%clk 0:02:52]} 14. Qf2 {[%clk 0:02:47]}  b5 {[%clk 0:02:47]} 15. a3 {[%clk 0:02:43]}  Rfd8 {[%clk 0:02:45]} 16. Kh1 {[%clk 0:02:28]}  Qc6 {[%clk 0:02:38]} 17. Qg3 {[%clk 0:02:11]}  Qc7 {[%clk 0:02:24]} 18. Qf2 {[%clk 0:02:01]}  Rac8 {[%clk 0:02:21]} 19. h3 {[%clk 0:01:56]}  Qc6 {[%clk 0:01:50]} 20. Qg3 {[%clk 0:01:54]}  Qc7 {[%clk 0:01:44]} 21. Qf2 {[%clk 0:01:53]}  Rb8 {[%clk 0:01:40]} 22. f4 {[%clk 0:01:47]}  exf4 {[%clk 0:01:37]} 23. Bxf4 {[%clk 0:01:46]}  Qb7 {[%clk 0:01:09]} 24. Bxb8 {[%clk 0:01:44]}  Rxb8 {[%clk 0:01:10]} 25. Rd2 {[%clk 0:01:39]}  Nxe4 {[%clk 0:00:32]} 26. Nxe4 {[%clk 0:01:38]}  Qxe4 {[%clk 0:00:33]} 27. Bd3 {[%clk 0:01:31]}  Qc6 {[%clk 0:00:26]} 28. Rfd1 {[%clk 0:01:29]}  Bxh3 {[%clk 0:00:22]} 29. Qg3 {[%clk 0:01:18]}  Be6 {[%clk 0:00:17]} 30. Qxb8+ {[%clk 0:01:17]}  Bf8 {[%clk 0:00:17]} 31. Bxh7+ {[%clk 0:01:12]}  Kxh7 {[%clk 0:00:16]} 32. Qxf8 {[%clk 0:01:11]}  Qe4 {[%clk 0:00:15]} 33. Rd8 {[%clk 0:01:06]}  Qh4+ {[%clk 0:00:13]} 34. Kg1 {[%clk 0:01:03]}  Qg4 {[%clk 0:00:12]} 35. Qh8+ {[%clk 0:01:01]}  Kg6 {[%clk 0:00:12]} 36. Qh3 {[%clk 0:00:54]}  Qxd1+ {[%clk 0:00:10]} 37. Rxd1 {[%clk 0:00:52]}  Bxh3 {[%clk 0:00:11]} 38. gxh3 {[%clk 0:00:52]}  Kf5 {[%clk 0:00:12]} 39. Kg2 {[%clk 0:00:53]}  Ke4 {[%clk 0:00:11]} 40. Kf2 {[%clk 0:00:51]}  f5 {[%clk 0:00:11]} 41. Rd7 {[%clk 0:00:50]}  g5 {[%clk 0:00:11]} 42. Rg7 {[%clk 0:00:49]}  Kf4 {[%clk 0:00:11]} 43. Rg8 {[%clk 0:00:48]}  a5 {[%clk 0:00:09]} 44. Rb8 {[%clk 0:00:46]}  b4 {[%clk 0:00:09]} 45. axb4 {[%clk 0:00:46]}  axb4 {[%clk 0:00:09]} 46. Rc8 {[%clk 0:00:45]}  g4 {[%clk 0:00:10]} 47. hxg4 {[%clk 0:00:44]}  fxg4 {[%clk 0:00:11]} 48. Rxc5 {[%clk 0:00:44]}  g3+ {[%clk 0:00:11]} 49. Kg2 {[%clk 0:00:44]} 1-0


[Site "https://www.chess.com"]

[Event "Titled Tuesday Blitz December 27 Early 2022"]
[White "Moral Garcia, Serafin"]
[Black "Bintang, Rasyid A. Hidayat"]
[WhiteFideId "2201925"]
[BlackFideId "7105355"]
[WhiteElo "2238"]
[BlackElo "1820"]
[Result "0-1"]
[Round "10"]
[TimeControl "180+2"]
[Date "2022.12.27"]
[WhiteClock "0:01:22"]
[BlackClock "0:01:20"]

1. c4 {[%clk 0:03:00]}  Nc6 {[%clk 0:02:59]} 2. Nc3 {[%clk 0:03:00]}  e5 {[%clk 0:02:59]} 3. g3 {[%clk 0:02:56]}  Bc5 {[%clk 0:02:58]} 4. Bg2 {[%clk 0:02:56]}  d6 {[%clk 0:02:58]} 5. e3 {[%clk 0:02:56]}  a6 {[%clk 0:02:57]} 6. Nge2 {[%clk 0:02:55]}  Ba7 {[%clk 0:02:57]} 7. d4 {[%clk 0:02:55]}  Nf6 {[%clk 0:02:54]} 8. O-O {[%clk 0:02:53]}  h5 {[%clk 0:02:51]} 9. h4 {[%clk 0:02:45]}  O-O {[%clk 0:02:49]} 10. b3 {[%clk 0:02:44]}  Bg4 {[%clk 0:02:45]} 11. f3 {[%clk 0:02:41]}  Bf5 {[%clk 0:02:44]} 12. Ba3 {[%clk 0:02:39]}  Re8 {[%clk 0:02:44]} 13. Qd2 {[%clk 0:02:34]}  exd4 {[%clk 0:02:17]} 14. exd4 {[%clk 0:02:33]}  Qd7 {[%clk 0:02:04]} 15. Kh2 {[%clk 0:02:32]}  Re7 {[%clk 0:02:03]} 16. d5 {[%clk 0:02:28]}  Ne5 {[%clk 0:02:02]} 17. Nd4 {[%clk 0:02:28]}  Bd3 {[%clk 0:02:02]} 18. Nde2 {[%clk 0:02:12]}  Be3 {[%clk 0:01:55]} 19. Qd1 {[%clk 0:02:08]}  Rae8 {[%clk 0:01:51]} 20. Nf4 {[%clk 0:01:46]}  Bxf1 {[%clk 0:01:48]} 21. Qxf1 {[%clk 0:01:43]}  Bxf4 {[%clk 0:01:49]} 22. gxf4 {[%clk 0:01:44]}  Ng6 {[%clk 0:01:49]} 23. Bh3 {[%clk 0:01:43]}  Qd8 {[%clk 0:01:48]} 24. Bf5 {[%clk 0:01:38]}  Nxf4 {[%clk 0:01:46]} 25. Bc1 {[%clk 0:01:35]}  Ne2 {[%clk 0:01:47]} 26. Bg5 {[%clk 0:01:23]}  Nxc3 {[%clk 0:01:40]} 27. Qg1 {[%clk 0:01:23]}  Re2+ {[%clk 0:01:39]} 28. Kh3 {[%clk 0:01:23]}  Kf8 {[%clk 0:01:35]} 29. Qg3 {[%clk 0:01:23]}  Qe7 {[%clk 0:01:23]} 30. Rg1 {[%clk 0:01:22]}  Qe5 {[%clk 0:01:20]} 0-1


[Site "https://www.chess.com"]

[Event "Titled Tuesday Blitz December 27 Early 2022"]
[White "Moreno Perez, Tobias Sebastian"]
[Black "Mendez Fortes, Eduardo Jesus"]
[WhiteFideId "186716"]
[BlackFideId "3502376"]
[WhiteElo "2256"]
[BlackElo "2250"]
[Result "0-1"]
[Round "10"]
[TimeControl "180+2"]
[Date "2022.12.27"]
[WhiteClock "0:00:01"]
[BlackClock "0:00:05"]

1. Nf3 {[%clk 0:03:00]}  d5 {[%clk 0:02:59]} 2. b3 {[%clk 0:03:00]}  Nf6 {[%clk 0:02:58]} 3. Bb2 {[%clk 0:03:00]}  e6 {[%clk 0:02:59]} 4. g3 {[%clk 0:03:01]}  c5 {[%clk 0:02:59]} 5. Bg2 {[%clk 0:03:02]}  Nc6 {[%clk 0:02:58]} 6. O-O {[%clk 0:03:03]}  d4 {[%clk 0:02:56]} 7. e3 {[%clk 0:03:02]}  Be7 {[%clk 0:02:43]} 8. Na3 {[%clk 0:03:01]}  O-O {[%clk 0:02:43]} 9. c4 {[%clk 0:03:01]}  e5 {[%clk 0:02:42]} 10. exd4 {[%clk 0:03:00]}  cxd4 {[%clk 0:02:41]} 11. d3 {[%clk 0:02:59]}  Re8 {[%clk 0:02:40]} 12. Nc2 {[%clk 0:02:58]}  Nd7 {[%clk 0:02:39]} 13. Re1 {[%clk 0:02:54]}  Bf8 {[%clk 0:02:32]} 14. Nd2 {[%clk 0:02:45]}  a5 {[%clk 0:02:27]} 15. a3 {[%clk 0:02:43]}  Ra7 {[%clk 0:02:26]} 16. Qe2 {[%clk 0:02:38]}  Nc5 {[%clk 0:02:25]} 17. b4 {[%clk 0:02:32]}  Na4 {[%clk 0:02:19]} 18. b5 {[%clk 0:02:24]}  Nxb2 {[%clk 0:01:54]} 19. bxc6 {[%clk 0:02:24]}  bxc6 {[%clk 0:01:53]} 20. Reb1 {[%clk 0:02:19]}  Na4 {[%clk 0:01:51]} 21. Rb8 {[%clk 0:01:35]}  Bd6 {[%clk 0:01:39]} 22. Rb3 {[%clk 0:01:33]}  Nc3 {[%clk 0:01:27]} 23. Qh5 {[%clk 0:01:30]}  g6 {[%clk 0:01:21]} 24. Qf3 {[%clk 0:01:28]}  Rc7 {[%clk 0:01:15]} 25. Rxc3 {[%clk 0:01:25]}  dxc3 {[%clk 0:01:14]} 26. Ne4 {[%clk 0:01:26]}  f5 {[%clk 0:01:10]} 27. Nxc3 {[%clk 0:01:26]}  Bc5 {[%clk 0:01:09]} 28. Na4 {[%clk 0:01:26]}  Bd4 {[%clk 0:01:08]} 29. Re1 {[%clk 0:01:24]}  c5 {[%clk 0:01:03]} 30. Nb6 {[%clk 0:01:22]}  Bb7 {[%clk 0:01:00]} 31. Qe2 {[%clk 0:01:20]}  Bxg2 {[%clk 0:00:57]} 32. Kxg2 {[%clk 0:01:21]}  e4 {[%clk 0:00:56]} 33. Nd5 {[%clk 0:01:21]}  Rd7 {[%clk 0:00:54]} 34. Qd2 {[%clk 0:01:08]}  Rxd5 {[%clk 0:00:33]} 35. cxd5 {[%clk 0:01:09]}  Qxd5 {[%clk 0:00:33]} 36. dxe4 {[%clk 0:01:09]}  Rxe4 {[%clk 0:00:30]} 37. Rxe4 {[%clk 0:01:00]}  Qxe4+ {[%clk 0:00:31]} 38. f3 {[%clk 0:01:01]}  Qe5 {[%clk 0:00:30]} 39. Qd3 {[%clk 0:00:55]}  a4 {[%clk 0:00:29]} 40. Qa6 {[%clk 0:00:44]}  Kg7 {[%clk 0:00:26]} 41. Qb7+ {[%clk 0:00:37]}  Kh6 {[%clk 0:00:26]} 42. Qb5 {[%clk 0:00:38]}  Bc3 {[%clk 0:00:22]} 43. Qd3 {[%clk 0:00:33]}  Bd4 {[%clk 0:00:17]} 44. h4 {[%clk 0:00:29]}  Kg7 {[%clk 0:00:15]} 45. Kh3 {[%clk 0:00:27]}  Qd5 {[%clk 0:00:15]} 46. Qe2 {[%clk 0:00:13]}  Qd7 {[%clk 0:00:14]} 47. Kg2 {[%clk 0:00:08]}  h5 {[%clk 0:00:13]} 48. Ne1 {[%clk 0:00:07]}  Qd5 {[%clk 0:00:13]} 49. Nd3 {[%clk 0:00:08]}  Kf7 {[%clk 0:00:12]} 50. Nf4 {[%clk 0:00:07]}  Qb3 {[%clk 0:00:09]} 51. Qa6 {[%clk 0:00:07]}  Qc2+ {[%clk 0:00:05]} 52. Kh3 {[%clk 0:00:07]}  Bg1 {[%clk 0:00:05]} 53. Qe6+ {[%clk 0:00:05]}  Kf8 {[%clk 0:00:06]} 54. Qf6+ {[%clk 0:00:01]}  Ke8 {[%clk 0:00:05]} 55. Qxg6+ {[%clk 0:00:02]}  Kd8 {[%clk 0:00:04]} 56. Qd6+ {[%clk 0:00:01]}  Kc8 {[%clk 0:00:04]} 57. Qc6+ {[%clk 0:00:02]}  Kb8 {[%clk 0:00:04]} 58. Qb6+ {[%clk 0:00:02]}  Kc8 {[%clk 0:00:05]} 59. Qc6+ {[%clk 0:00:01]}  Kd8 {[%clk 0:00:06]} 60. Qd6+ {[%clk 0:00:01]}  Kc8 {[%clk 0:00:06]} 61. Ng2 {[%clk 0:00:01]}  f4 {[%clk 0:00:06]} 62. Qc6+ {[%clk 0:00:01]}  Kd8 {[%clk 0:00:05]} 63. Qd6+ {[%clk 0:00:01]}  Ke8 {[%clk 0:00:05]} 64. Qxf4 {[%clk 0:00:02]}  Qd3 {[%clk 0:00:04]} 65. Qb8+ {[%clk 0:00:02]}  Ke7 {[%clk 0:00:04]} 66. Qb7+ {[%clk 0:00:02]}  Qd7+ {[%clk 0:00:05]} 67. Qxd7+ {[%clk 0:00:01]}  Kxd7 {[%clk 0:00:05]} 68. Nf4 {[%clk 0:00:01]}  Be3 {[%clk 0:00:05]} 0-1


[Site "https://www.chess.com"]

[Event "Titled Tuesday Blitz December 27 Early 2022"]
[White "Moskvin, Anatoly"]
[Black "Cardoso Cardoso, Jose Gabriel"]
[WhiteFideId "24199990"]
[BlackFideId "4430492"]
[WhiteElo "2189"]
[BlackElo "2492"]
[Result "0-1"]
[Round "10"]
[TimeControl "180+2"]
[Date "2022.12.27"]
[WhiteClock "0:00:03"]
[BlackClock "0:00:31"]

1. e4 {[%clk 0:03:00]}  g6 {[%clk 0:02:57]} 2. d4 {[%clk 0:03:00]}  Bg7 {[%clk 0:02:57]} 3. Nc3 {[%clk 0:03:01]}  d6 {[%clk 0:02:55]} 4. Be3 {[%clk 0:02:58]}  a6 {[%clk 0:02:53]} 5. Qd2 {[%clk 0:02:58]}  Nd7 {[%clk 0:02:47]} 6. h4 {[%clk 0:02:53]}  h5 {[%clk 0:02:45]} 7. Nh3 {[%clk 0:02:53]}  e6 {[%clk 0:02:42]} 8. Ng5 {[%clk 0:02:46]}  b5 {[%clk 0:02:41]} 9. f3 {[%clk 0:02:45]}  Qe7 {[%clk 0:02:40]} 10. O-O-O {[%clk 0:02:17]}  Bb7 {[%clk 0:02:36]} 11. Kb1 {[%clk 0:02:10]}  Ngf6 {[%clk 0:02:30]} 12. Be2 {[%clk 0:01:50]}  Nb6 {[%clk 0:02:27]} 13. Rdg1 {[%clk 0:01:37]}  b4 {[%clk 0:02:24]} 14. Nd1 {[%clk 0:01:36]}  a5 {[%clk 0:02:25]} 15. d5 {[%clk 0:01:24]}  exd5 {[%clk 0:02:20]} 16. Bxb6 {[%clk 0:01:24]}  cxb6 {[%clk 0:02:20]} 17. Bb5+ {[%clk 0:01:24]}  Kf8 {[%clk 0:02:17]} 18. exd5 {[%clk 0:01:21]}  Nxd5 {[%clk 0:02:15]} 19. Re1 {[%clk 0:01:21]}  Qf6 {[%clk 0:02:08]} 20. Ne4 {[%clk 0:01:18]}  Qd8 {[%clk 0:01:53]} 21. f4 {[%clk 0:01:07]}  Nf6 {[%clk 0:01:35]} 22. Nxd6 {[%clk 0:00:55]}  Bd5 {[%clk 0:01:35]} 23. Nc4 {[%clk 0:00:46]}  Bxc4 {[%clk 0:01:29]} 24. Qxd8+ {[%clk 0:00:45]}  Rxd8 {[%clk 0:01:30]} 25. Bxc4 {[%clk 0:00:46]}  Ng4 {[%clk 0:01:29]} 26. Re2 {[%clk 0:00:43]}  Rd4 {[%clk 0:01:25]} 27. Rhe1 {[%clk 0:00:38]}  Bf6 {[%clk 0:01:23]} 28. Re8+ {[%clk 0:00:24]}  Kg7 {[%clk 0:01:22]} 29. Rxh8 {[%clk 0:00:24]}  Kxh8 {[%clk 0:01:23]} 30. Bxf7 {[%clk 0:00:24]}  Kg7 {[%clk 0:01:22]} 31. Be6 {[%clk 0:00:20]}  Rxf4 {[%clk 0:01:21]} 32. g3 {[%clk 0:00:18]}  Rd4 {[%clk 0:01:14]} 33. c3 {[%clk 0:00:17]}  Rd3 {[%clk 0:00:56]} 34. Bxg4 {[%clk 0:00:12]}  hxg4 {[%clk 0:00:52]} 35. cxb4 {[%clk 0:00:06]}  Rxg3 {[%clk 0:00:50]} 36. bxa5 {[%clk 0:00:06]}  bxa5 {[%clk 0:00:49]} 37. Ne3 {[%clk 0:00:05]}  Bxh4 {[%clk 0:00:47]} 38. Re2 {[%clk 0:00:06]}  Bg5 {[%clk 0:00:45]} 39. Ng2 {[%clk 0:00:03]}  Rf3 {[%clk 0:00:43]} 40. Kc2 {[%clk 0:00:04]}  g3 {[%clk 0:00:43]} 41. b3 {[%clk 0:00:04]}  Kf6 {[%clk 0:00:35]} 42. a3 {[%clk 0:00:05]}  Kf5 {[%clk 0:00:35]} 43. b4 {[%clk 0:00:05]}  Rxa3 {[%clk 0:00:33]} 44. bxa5 {[%clk 0:00:06]}  Rxa5 {[%clk 0:00:33]} 45. Kd3 {[%clk 0:00:05]}  Ra3+ {[%clk 0:00:32]} 46. Kd4 {[%clk 0:00:05]}  Kg4 {[%clk 0:00:32]} 47. Rb2 {[%clk 0:00:03]}  Bf6+ {[%clk 0:00:31]} 0-1


[Site "https://www.chess.com"]

[Event "Titled Tuesday Blitz December 27 Early 2022"]
[White "Orzech, Dominik"]
[Black "Gurevich, Dmitry"]
[WhiteFideId "1115065"]
[BlackFideId "2000407"]
[WhiteElo "2308"]
[BlackElo "2393"]
[Result "0-1"]
[Round "10"]
[TimeControl "180+2"]
[Date "2022.12.27"]
[WhiteClock "0:02:24"]
[BlackClock "0:02:36"]

1. e4 {[%clk 0:03:00]}  c5 {[%clk 0:02:59]} 2. f3 {[%clk 0:02:50]}  d5 {[%clk 0:02:57]} 3. exd5 {[%clk 0:02:47]}  Nf6 {[%clk 0:02:51]} 4. Bb5+ {[%clk 0:02:45]}  Bd7 {[%clk 0:02:51]} 5. Bxd7+ {[%clk 0:02:44]}  Qxd7 {[%clk 0:02:51]} 6. c4 {[%clk 0:02:44]}  e6 {[%clk 0:02:51]} 7. dxe6 {[%clk 0:02:43]}  Qxe6+ {[%clk 0:02:51]} 8. Qe2 {[%clk 0:02:42]}  Qxe2+ {[%clk 0:02:49]} 9. Nxe2 {[%clk 0:02:42]}  Nc6 {[%clk 0:02:50]} 10. a3 {[%clk 0:02:34]}  Na5 {[%clk 0:02:43]} 11. d3 {[%clk 0:02:31]}  O-O-O {[%clk 0:02:40]} 12. Nf4 {[%clk 0:02:24]}  Nb3 {[%clk 0:02:36]} 0-1


[Site "https://www.chess.com"]

[Event "Titled Tuesday Blitz December 27 Early 2022"]
[White "Ozen, Bahadir"]
[Black "Makarian, Rudik"]
[WhiteFideId "6337058"]
[BlackFideId "44105681"]
[WhiteElo "2369"]
[BlackElo "2545"]
[Result "1/2-1/2"]
[Round "10"]
[TimeControl "180+2"]
[Date "2022.12.27"]
[WhiteClock "0:00:16"]
[BlackClock "0:00:07"]

1. g3 {[%clk 0:03:00]}  Nf6 {[%clk 0:02:58]} 2. Nf3 {[%clk 0:03:00]}  b5 {[%clk 0:02:58]} 3. Bg2 {[%clk 0:03:00]}  Bb7 {[%clk 0:02:59]} 4. O-O {[%clk 0:03:00]}  e6 {[%clk 0:02:59]} 5. b3 {[%clk 0:02:53]}  Be7 {[%clk 0:02:59]} 6. c4 {[%clk 0:02:52]}  b4 {[%clk 0:02:59]} 7. a3 {[%clk 0:02:50]}  a5 {[%clk 0:02:59]} 8. axb4 {[%clk 0:02:50]}  axb4 {[%clk 0:03:00]} 9. Rxa8 {[%clk 0:02:50]}  Bxa8 {[%clk 0:03:01]} 10. d3 {[%clk 0:02:43]}  O-O {[%clk 0:03:01]} 11. Nbd2 {[%clk 0:02:42]}  c5 {[%clk 0:03:01]} 12. Bb2 {[%clk 0:02:41]}  Nc6 {[%clk 0:03:00]} 13. Qa1 {[%clk 0:02:39]}  Bb7 {[%clk 0:02:56]} 14. Ne5 {[%clk 0:02:36]}  Qc7 {[%clk 0:02:54]} 15. Nxc6 {[%clk 0:02:12]}  Bxc6 {[%clk 0:02:55]} 16. d4 {[%clk 0:02:02]}  Ra8 {[%clk 0:02:52]} 17. Qb1 {[%clk 0:02:00]}  cxd4 {[%clk 0:02:50]} 18. Bxd4 {[%clk 0:01:58]}  e5 {[%clk 0:02:48]} 19. Bb2 {[%clk 0:01:53]}  Bxg2 {[%clk 0:02:38]} 20. Kxg2 {[%clk 0:01:53]}  Qc6+ {[%clk 0:02:39]} 21. Kg1 {[%clk 0:01:46]}  d6 {[%clk 0:02:38]} 22. Rd1 {[%clk 0:01:43]}  h5 {[%clk 0:02:19]} 23. Nf1 {[%clk 0:01:39]}  Qe4 {[%clk 0:02:16]} 24. Ne3 {[%clk 0:01:34]}  Qxb1 {[%clk 0:01:50]} 25. Rxb1 {[%clk 0:01:34]}  g6 {[%clk 0:01:50]} 26. Ra1 {[%clk 0:01:25]}  Rxa1+ {[%clk 0:01:39]} 27. Bxa1 {[%clk 0:01:26]}  Kf8 {[%clk 0:01:32]} 28. Nc2 {[%clk 0:01:25]}  Ne4 {[%clk 0:01:32]} 29. Nxb4 {[%clk 0:01:22]}  Nc5 {[%clk 0:01:31]} 30. Nd5 {[%clk 0:01:20]}  Nxb3 {[%clk 0:01:32]} 31. Bc3 {[%clk 0:01:20]}  Ke8 {[%clk 0:01:29]} 32. f3 {[%clk 0:01:14]}  Bd8 {[%clk 0:01:28]} 33. Kf2 {[%clk 0:01:14]}  Ba5 {[%clk 0:01:18]} 34. Ke3 {[%clk 0:01:03]}  Bxc3 {[%clk 0:01:12]} 35. Nxc3 {[%clk 0:01:04]}  Kd7 {[%clk 0:01:13]} 36. h3 {[%clk 0:01:00]}  Ke6 {[%clk 0:01:07]} 37. Ne4 {[%clk 0:00:45]}  Na5 {[%clk 0:01:04]} 38. Kd3 {[%clk 0:00:45]}  Nc6 {[%clk 0:01:04]} 39. Ng5+ {[%clk 0:00:44]}  Ke7 {[%clk 0:01:03]} 40. e3 {[%clk 0:00:44]}  Na5 {[%clk 0:00:58]} 41. Ne4 {[%clk 0:00:42]}  Kd7 {[%clk 0:00:54]} 42. Kc3 {[%clk 0:00:40]}  Nc6 {[%clk 0:00:53]} 43. Kd3 {[%clk 0:00:40]}  Ne7 {[%clk 0:00:49]} 44. g4 {[%clk 0:00:37]}  h4 {[%clk 0:00:28]} 45. f4 {[%clk 0:00:33]}  Nc6 {[%clk 0:00:25]} 46. Ng5 {[%clk 0:00:32]}  f5 {[%clk 0:00:18]} 47. gxf5 {[%clk 0:00:31]}  gxf5 {[%clk 0:00:19]} 48. e4 {[%clk 0:00:14]}  fxe4+ {[%clk 0:00:09]} 49. Kxe4 {[%clk 0:00:14]}  exf4 {[%clk 0:00:09]} 50. Kxf4 {[%clk 0:00:15]}  Ne5 {[%clk 0:00:08]} 51. c5 {[%clk 0:00:14]}  Nd3+ {[%clk 0:00:07]} 52. Ke3 {[%clk 0:00:14]}  Nxc5 {[%clk 0:00:06]} 53. Nf3 {[%clk 0:00:15]}  Ne6 {[%clk 0:00:06]} 54. Nxh4 {[%clk 0:00:15]}  Ng5 {[%clk 0:00:06]} 55. Nf5 {[%clk 0:00:15]}  Nxh3 {[%clk 0:00:07]} 56. Nxd6 {[%clk 0:00:16]} 1/2-1/2


[Site "https://www.chess.com"]

[Event "Titled Tuesday Blitz December 27 Early 2022"]
[White "Pakleza, Zbigniew"]
[Black "Zierk, Steven"]
[WhiteFideId "1119290"]
[BlackFideId "2034255"]
[WhiteElo "2494"]
[BlackElo "2488"]
[Result "0-1"]
[Round "10"]
[TimeControl "180+2"]
[Date "2022.12.27"]
[WhiteClock "0:00:02"]
[BlackClock "0:00:13"]

1. d4 {[%clk 0:03:00]}  d5 {[%clk 0:02:45]} 2. Bf4 {[%clk 0:02:59]}  Nf6 {[%clk 0:02:44]} 3. e3 {[%clk 0:03:00]}  c5 {[%clk 0:02:42]} 4. c3 {[%clk 0:03:00]}  e6 {[%clk 0:02:41]} 5. Nd2 {[%clk 0:03:01]}  Bd6 {[%clk 0:02:40]} 6. Bg3 {[%clk 0:03:01]}  O-O {[%clk 0:02:40]} 7. Ngf3 {[%clk 0:03:02]}  Qc7 {[%clk 0:02:39]} 8. Be2 {[%clk 0:03:02]}  Nbd7 {[%clk 0:02:39]} 9. c4 {[%clk 0:03:03]}  Bxg3 {[%clk 0:02:26]} 10. hxg3 {[%clk 0:03:03]}  e5 {[%clk 0:02:27]} 11. cxd5 {[%clk 0:02:53]}  cxd4 {[%clk 0:02:13]} 12. exd4 {[%clk 0:02:26]}  e4 {[%clk 0:02:13]} 13. Rc1 {[%clk 0:02:05]}  Qd6 {[%clk 0:02:04]} 14. Ne5 {[%clk 0:01:17]}  Nxe5 {[%clk 0:01:51]} 15. dxe5 {[%clk 0:01:18]}  Qxe5 {[%clk 0:01:52]} 16. Nc4 {[%clk 0:01:10]}  Qxd5 {[%clk 0:01:48]} 17. O-O {[%clk 0:01:09]}  Be6 {[%clk 0:01:39]} 18. Qb3 {[%clk 0:00:49]}  Qg5 {[%clk 0:01:28]} 19. Qxb7 {[%clk 0:00:17]}  Bxc4 {[%clk 0:01:27]} 20. Rxc4 {[%clk 0:00:14]}  e3 {[%clk 0:01:27]} 21. Qf3 {[%clk 0:00:13]}  exf2+ {[%clk 0:01:13]} 22. Qxf2 {[%clk 0:00:14]}  Rad8 {[%clk 0:01:02]} 23. Qf4 {[%clk 0:00:10]}  Qa5 {[%clk 0:01:00]} 24. Bf3 {[%clk 0:00:03]}  Qxa2 {[%clk 0:00:55]} 25. b4 {[%clk 0:00:02]}  Rfe8 {[%clk 0:00:44]} 26. Rc7 {[%clk 0:00:02]}  Qa6 {[%clk 0:00:38]} 27. Rfc1 {[%clk 0:00:02]}  Qb6+ {[%clk 0:00:33]} 28. Kh2 {[%clk 0:00:03]}  Rd4 {[%clk 0:00:32]} 29. Qg5 {[%clk 0:00:02]}  h6 {[%clk 0:00:25]} 30. Qc5 {[%clk 0:00:02]}  Rxb4 {[%clk 0:00:20]} 31. Rxa7 {[%clk 0:00:02]}  Qb8 {[%clk 0:00:17]} 32. Qc7 {[%clk 0:00:02]}  Rf8 {[%clk 0:00:14]} 33. Qxb8 {[%clk 0:00:03]}  Rbxb8 {[%clk 0:00:14]} 34. Rcc7 {[%clk 0:00:03]}  Nh7 {[%clk 0:00:14]} 35. Bd5 {[%clk 0:00:02]}  Ng5 {[%clk 0:00:14]} 36. g4 {[%clk 0:00:02]}  Rbd8 {[%clk 0:00:14]} 37. Rd7 {[%clk 0:00:02]}  Rxd7 {[%clk 0:00:14]} 38. Rxd7 {[%clk 0:00:03]}  Re8 {[%clk 0:00:14]} 39. Rc7 {[%clk 0:00:02]}  g6 {[%clk 0:00:13]} 40. Bc4 {[%clk 0:00:02]}  Re4 {[%clk 0:00:13]} 41. Kg3 {[%clk 0:00:03]}  Kg7 {[%clk 0:00:13]} 42. Bf1 {[%clk 0:00:02]}  Rd4 {[%clk 0:00:13]} 43. Bc4 {[%clk 0:00:02]}  Ne4+ {[%clk 0:00:13]} 0-1


[Site "https://www.chess.com"]

[Event "Titled Tuesday Blitz December 27 Early 2022"]
[White "Pinheiro, Iung Alicio de O."]
[Black "Makhmudov, Shukhrat"]
[WhiteFideId "2104350"]
[BlackFideId "14200775"]
[WhiteElo "2306"]
[BlackElo "2115"]
[Result "1-0"]
[Round "10"]
[TimeControl "180+2"]
[Date "2022.12.27"]
[WhiteClock "0:00:17"]
[BlackClock "0:00:06"]

1. d4 {[%clk 0:03:00]}  Nf6 {[%clk 0:02:57]} 2. c4 {[%clk 0:03:00]}  e6 {[%clk 0:02:58]} 3. g3 {[%clk 0:03:00]}  d5 {[%clk 0:02:56]} 4. Bg2 {[%clk 0:03:00]}  c6 {[%clk 0:02:57]} 5. Nf3 {[%clk 0:03:00]}  Be7 {[%clk 0:02:57]} 6. O-O {[%clk 0:03:00]}  O-O {[%clk 0:02:58]} 7. Nbd2 {[%clk 0:03:00]}  Nbd7 {[%clk 0:02:58]} 8. Qc2 {[%clk 0:03:01]}  b6 {[%clk 0:02:59]} 9. Rd1 {[%clk 0:03:00]}  Bb7 {[%clk 0:02:59]} 10. e4 {[%clk 0:03:01]}  c5 {[%clk 0:02:53]} 11. exd5 {[%clk 0:02:28]}  exd5 {[%clk 0:02:53]} 12. dxc5 {[%clk 0:02:28]}  Bxc5 {[%clk 0:02:46]} 13. Nb3 {[%clk 0:02:19]}  Qc7 {[%clk 0:02:41]} 14. Bf4 {[%clk 0:02:15]}  Qc8 {[%clk 0:02:42]} 15. Rac1 {[%clk 0:02:12]}  dxc4 {[%clk 0:02:35]} 16. Qxc4 {[%clk 0:02:11]}  Re8 {[%clk 0:02:01]} 17. Ng5 {[%clk 0:02:05]}  Rf8 {[%clk 0:01:31]} 18. Nxc5 {[%clk 0:01:40]}  Nxc5 {[%clk 0:01:25]} 19. Bd6 {[%clk 0:01:34]}  Bxg2 {[%clk 0:01:17]} 20. Bxf8 {[%clk 0:01:34]}  Qb7 {[%clk 0:01:11]} 21. Bxc5 {[%clk 0:01:21]}  bxc5 {[%clk 0:01:11]} 22. Nxf7 {[%clk 0:01:06]}  Bd5 {[%clk 0:00:53]} 23. Nd6 {[%clk 0:01:01]}  Qc6 {[%clk 0:00:44]} 24. Qxc5 {[%clk 0:01:01]}  Qxc5 {[%clk 0:00:35]} 25. Rxc5 {[%clk 0:01:02]}  Bxa2 {[%clk 0:00:29]} 26. Nf5 {[%clk 0:00:51]}  Bb3 {[%clk 0:00:27]} 27. Re1 {[%clk 0:00:47]}  g6 {[%clk 0:00:13]} 28. Ne7+ {[%clk 0:00:30]}  Kg7 {[%clk 0:00:13]} 29. Rc7 {[%clk 0:00:30]}  Kh6 {[%clk 0:00:13]} 30. Nc6 {[%clk 0:00:29]}  a5 {[%clk 0:00:08]} 31. Nd4 {[%clk 0:00:21]}  Bd5 {[%clk 0:00:07]} 32. f3 {[%clk 0:00:19]}  a4 {[%clk 0:00:07]} 33. h4 {[%clk 0:00:17]}  a3 {[%clk 0:00:06]} 34. bxa3 {[%clk 0:00:16]}  Rxa3 {[%clk 0:00:06]} 35. g4 {[%clk 0:00:17]} 1-0


[Site "https://www.chess.com"]